fUSD/lending_fUSD_20250405
["ID","MTS","AMOUNT","RATE_DAILY","PERIOD"]
[357207342,1743894640221,-520.10098081,0.00030136,2]
[357207343,1743894640230,-519.87175156,0.00030136,2]
[357207344,1743894640240,-500.0,0.00030136,2]
[357207345,1743894640249,-522.58652662,0.00030136,2]
[357207346,1743894640258,-515.1174909,0.00030136,2]
[357207347,1743894640268,-503.80937387,0.00030136,2]
[357207348,1743894640277,-513.52402015,0.00030136,2]
[357207349,1743894640287,-494.0,0.00030136,2]
[357207350,1743894640296,-510.0486867,0.00030136,2]
[357207351,1743894640305,-506.69847869,0.00030136,2]
[357207352,1743894640314,-513.19253225,0.00030136,2]
[357207354,1743894640323,-508.81735139,0.00030136,2]
[357207356,1743894640333,-625.16203822,0.00030136,2]
[357207358,1743894640344,-525.46999234,0.00030136,2]
[357207360,1743894640353,-500.0,0.00030136,2]
[357207362,1743894640363,-509.24998448,0.00030136,2]
[357207364,1743894640372,-507.21757606,0.00030136,2]
[357207366,1743894640381,-517.77717569,0.00030136,2]
[357207368,1743894640390,-508.45618544,0.00030136,2]
[357207370,1743894640400,-500.0,0.00030136,2]
[357207372,1743894640409,-500.0,0.00030136,2]
[357207374,1743894640419,-500.0,0.00030136,2]
[357207376,1743894640429,-500.0,0.00030136,2]
[357207378,1743894640438,-521.34806053,0.00030136,2]
[357207380,1743894640447,-502.34793621,0.00030136,2]
[357207382,1743894640456,-500.0,0.00030136,2]
[357207384,1743894640467,-513.06634644,0.00030136,2]
[357207385,1743894640476,-500.0,0.00030136,2]
[357207388,1743894640486,-508.16612048,0.00030136,2]
[357207389,1743894640495,-500.0,0.00030136,2]
[357207392,1743894640504,-266.35560013,0.00030136,2]
[357207393,1743894640514,-512.3323488,0.00030136,2]
[357207396,1743894640523,-520.85745833,0.00030136,2]
[357207397,1743894640532,-500.0,0.00030136,2]
[357207399,1743894640541,-510.5081526,0.00030136,2]
[357207401,1743894640551,-500.0,0.00030136,2]
[357207403,1743894640560,-508.24022279,0.00030136,2]
[357207405,1743894640569,-527.6968441,0.00030136,2]
[357207407,1743894640578,-500.0,0.00030136,2]
[357207409,1743894640588,-511.56769437,0.00030136,2]
[357207411,1743894640597,-529.69339741,0.00030136,2]
[357207413,1743894640606,-500.0,0.00030136,2]
[357207415,1743894640615,-512.10120459,0.00030136,2]
[357207417,1743894640625,-510.35941763,0.00030136,2]
[357207419,1743894640635,-503.22547605,0.00030136,2]
[357207421,1743894640644,-500.0,0.00030136,2]
[357207423,1743894640654,-541.07274743,0.00030136,2]
[357207425,1743894640663,-516.5036726,0.00030136,2]
[357207427,1743894640672,-528.91794588,0.00030136,2]
[357207429,1743894640681,-519.89918623,0.00030136,2]
[357207431,1743894640691,-517.95936593,0.00030136,2]
[357207433,1743894640700,-516.91437585,0.00030136,2]
[357207435,1743894640709,-153.68996381,0.00030136,2]
[357207437,1743894640719,-511.63051385,0.00030136,2]
[357207439,1743894640728,-5118.78448625,0.00030136,2]
[357207441,1743894640737,-555.91421778,0.00030136,2]
[357207443,1743894640746,-526.78276193,0.00030136,2]
[357207445,1743894640755,-508.28439278,0.00030136,2]
[357207447,1743894640764,-536.71142715,0.00030136,2]
[357207449,1743894640777,-508.08011087,0.00030136,2]
[357207451,1743894640786,-500.0,0.00030136,2]
[357207453,1743894640795,-518.8021181,0.00030136,2]
[357207455,1743894640804,-500.0,0.00030136,2]
[357207457,1743894640814,-500.0,0.00030136,2]
[357207459,1743894640823,-513.8293806,0.00030136,2]
[357207461,1743894640832,-500.0,0.00030136,2]
[357207463,1743894640842,-500.0,0.00030136,2]
[357207465,1743894640853,-500.0,0.00030136,2]
[357207467,1743894640863,-510.83839953,0.00030136,2]
[357207469,1743894640872,-519.80364516,0.00030136,2]
[357207471,1743894640881,-507.60554518,0.00030136,2]
[357207473,1743894640890,-161.364227,0.00030136,2]
[357207475,1743894640899,-513.37176793,0.00030136,2]
[357207477,1743894640908,-500.0,0.00030136,2]
[357207479,1743894640916,-504.14684809,0.00030136,2]
[357207480,1743894640926,-538.12514263,0.00030136,2]
[357207482,1743894640935,-500.0,0.00030136,2]
[357207483,1743894640944,-500.0,0.00030136,2]
[357207485,1743894640953,-506.54242806,0.00030136,2]
[357207487,1743894640962,-500.0,0.00030136,2]
[357207489,1743894640971,-502.95700431,0.00030136,2]
[357207491,1743894640979,-500.0,0.00030136,2]
[357207493,1743894640989,-506.67798785,0.00030136,2]
[357207495,1743894640999,-503.91038197,0.00030136,2]
[357207497,1743894641009,-543.90585606,0.00030136,2]
[357207499,1743894641018,-506.31270859,0.00030136,2]
[357207501,1743894641027,-500.0,0.00030136,2]
[357207516,1743894641163,-504.8755743,0.00030136,2]
[357207518,1743894641172,-246.89620376,0.00030136,2]
[357207520,1743894641182,-500.0,0.00030136,2]
[357207522,1743894641191,-500.0,0.00030136,2]
[357207524,1743894641200,-506.81106009,0.00030136,2]
[357207526,1743894641209,-500.0,0.00030136,2]
[357207528,1743894641218,-500.0,0.00030136,2]
[357207530,1743894641227,-503.08115151,0.00030136,2]
[357207532,1743894641236,-500.0,0.00030136,2]
[357207534,1743894641246,-500.0,0.00030136,2]
[357207536,1743894641255,-565.4997888,0.00030136,2]
[357207538,1743894641264,-500.0,0.00030136,2]
[357207540,1743894641273,-509.35636741,0.00030136,2]
[357207542,1743894641282,-500.0,0.00030136,2]
[357207544,1743894641291,-513.98791306,0.00030136,2]
[357207546,1743894641300,-500.0,0.00030136,2]
[357207548,1743894641310,-507.23948785,0.00030136,2]
[357207550,1743894641319,-500.0,0.00030136,2]
[357207552,1743894641328,-500.0,0.00030136,2]
[357207554,1743894641338,-520.43077892,0.00030136,2]
[357207556,1743894641347,-500.0,0.00030136,2]
[357207558,1743894641357,-537.53331197,0.00030136,2]
[357207560,1743894641365,-576.65508759,0.00030136,2]
[357207562,1743894641375,-501.98182992,0.00030136,2]
[357207564,1743894641385,-500.0,0.00030136,2]
[357207566,1743894641394,-500.0,0.00030136,2]
[357207568,1743894641403,-561.00454071,0.00030136,2]
[357207570,1743894641412,-507.36701892,0.00030136,2]
[357207572,1743894641421,-500.0,0.00030136,2]
[357207574,1743894641429,-500.0,0.00030136,2]
[357207576,1743894641439,-557.6491713,0.00030136,2]
[357207578,1743894641448,-500.0,0.00030136,2]
[357207580,1743894641457,-540.26251611,0.00030136,2]
[357207582,1743894641466,-500.0,0.00030136,2]
[357207584,1743894641476,-504.39180109,0.00030136,2]
[357207586,1743894641486,-500.0,0.00030136,2]
[357207588,1743894641495,-505.86729759,0.00030136,2]
[357207590,1743894641506,-555.8871105,0.00030136,2]
[357207592,1743894641515,-500.0,0.00030136,2]
[357207594,1743894641524,-500.0,0.00030136,2]
[357207595,1743894641533,-537.16175516,0.00030136,2]
[357207597,1743894641542,-545.33799613,0.00030136,2]
[357207599,1743894641552,-503.75596813,0.00030136,2]
[357207601,1743894641561,-500.0,0.00030136,2]
[357207603,1743894641570,-508.70400463,0.00030136,2]
[357207605,1743894641579,-500.0,0.00030136,2]
[357207607,1743894641589,-500.0,0.00030136,2]
[357207609,1743894641599,-505.89751298,0.00030136,2]
[357207612,1743894641608,-500.0,0.00030136,2]
[357207614,1743894641617,-575.55177325,0.00030136,2]
[357207616,1743894641627,-500.0,0.00030136,2]
[357207618,1743894641636,-500.0,0.00030136,2]
[357207619,1743894641644,-507.76963342,0.00030136,2]
[357207621,1743894641653,-574.87036745,0.00030136,2]
[357207622,1743894641663,-173.51913702,0.00030136,2]
[357207623,1743894641672,-500.0,0.00030136,2]
[357207624,1743894641681,-578.20378569,0.00030136,2]
[357207625,1743894641690,-500.0,0.00030136,2]
[357207626,1743894641699,-502.81017383,0.00030136,2]
[357207627,1743894641708,-500.0,0.00030136,2]
[357207628,1743894641718,-560.78729335,0.00030136,2]
[357207629,1743894641727,-506.15580656,0.00030136,2]
[357207630,1743894641737,-617.59858008,0.00030136,2]
[357207631,1743894641746,-545.71774998,0.00030136,2]
[357207632,1743894641755,-505.9817568,0.00030136,2]
[357207633,1743894641764,-500.0,0.00030136,2]
[357207634,1743894641776,-512.35888466,0.00030136,2]
[357207635,1743894641785,-512.52824009,0.00030136,2]
[357207636,1743894641794,-506.5581849,0.00030136,2]
[357207637,1743894641803,-500.0,0.00030136,2]
[357207638,1743894641812,-514.56612993,0.00030136,2]
[357207639,1743894641821,-508.69370838,0.00030136,2]
[357207640,1743894641830,-509.02190301,0.00030136,2]
[357207641,1743894641839,-505.76001783,0.00030136,2]
[357207642,1743894641849,-538.57985355,0.00030136,2]
[357207643,1743894641859,-513.41750003,0.00030136,2]
[357207644,1743894641868,-506.06663659,0.00030136,2]
[357207645,1743894641877,-514.41309422,0.00030136,2]
[357207646,1743894641887,-500.0,0.00030136,2]
[357207647,1743894641896,-500.0,0.00030136,2]
[357207648,1743894641905,-500.0,0.00030136,2]
[357207649,1743894641914,-527.07461331,0.00030136,2]
[357207650,1743894641925,-609.32589591,0.00030136,2]
[357207651,1743894641934,-500.0,0.00030136,2]
[357207652,1743894641946,-501.17638583,0.00030136,2]
[357207653,1743894641955,-507.8572718,0.00030136,2]
[357207654,1743894641963,-511.57048149,0.00030136,2]
[357207655,1743894641972,-505.49200236,0.00030136,2]
[357207656,1743894641981,-507.30171577,0.00030136,2]
[357207657,1743894641990,-504.67658253,0.00030136,2]
[357207658,1743894641999,-500.0,0.00030136,2]
[357207659,1743894642008,-500.0,0.00030136,2]
[357207660,1743894642018,-516.30838246,0.00030136,2]
[357207661,1743894642027,-500.0,0.00030136,2]
[357207662,1743894642036,-500.0,0.00030136,2]
[357207663,1743894642046,-505.54142811,0.00030136,2]
[357207664,1743894642055,-500.0,0.00030136,2]
[357207665,1743894642067,-500.0,0.00030136,2]
[357207666,1743894642076,-538.77716226,0.00030136,2]
[357207667,1743894642085,-533.52015198,0.00030136,2]
[357207668,1743894642094,-505.42695955,0.00030136,2]
[357207669,1743894642103,-500.0,0.00030136,2]
[357207670,1743894642114,-500.0,0.00030136,2]
[357207671,1743894642125,-535.73688638,0.00030136,2]
[357207672,1743894642136,-502.10157183,0.00030136,2]
[357207673,1743894642148,-505.27721648,0.00030136,2]
[357207674,1743894642159,-500.0,0.00030136,2]
[357207675,1743894642168,-508.27144037,0.00030136,2]
[357207676,1743894642179,-500.0,0.00030136,2]
[357207677,1743894642188,-377.88263545,0.00030136,2]
[357207678,1743894642197,-500.0,0.00030136,2]
[357207679,1743894642207,-508.62367757,0.00030136,2]
[357207680,1743894642216,-509.17841323,0.00030136,2]
[357207681,1743894642225,-539.6816392,0.00030136,2]
[357207682,1743894642234,-505.06393486,0.00030136,2]
[357207683,1743894642243,-500.0,0.00030136,2]
[357207684,1743894642252,-500.0,0.00030136,2]
[357207685,1743894642261,-500.0,0.00030136,2]
[357207686,1743894642270,-504.494281,0.00030136,2]
[357207687,1743894642279,-543.52657837,0.00030136,2]
[357207688,1743894642288,-508.68354348,0.00030136,2]
[357207689,1743894642298,-504.96369823,0.00030136,2]
[357207690,1743894642308,-514.53213564,0.00030136,2]
[357207691,1743894642318,-500.0,0.00030136,2]
[357207692,1743894642327,-528.34457471,0.00030136,2]
[357207693,1743894642336,-500.67855421,0.00030136,2]
[357207694,1743894642346,-500.0,0.00030136,2]
[357207695,1743894642355,-500.0,0.00030136,2]
[357207696,1743894642364,-200.0,0.00030136,2]
[357207697,1743894642373,-559.02268331,0.00030136,2]
[357207698,1743894642382,-500.0,0.00030136,2]
[357207699,1743894642391,-500.0,0.00030136,2]
[357207700,1743894642400,-502.25772223,0.00030136,2]
[357207701,1743894642409,-542.54846224,0.00030136,2]
[357207702,1743894642419,-503.41124588,0.00030136,2]
[357207703,1743894642427,-500.0,0.00030136,2]
[357207704,1743894642437,-511.47505377,0.00030136,2]
[357207705,1743894642446,-508.575437,0.00030136,2]
[357207706,1743894642455,-513.54661152,0.00030136,2]
[357207707,1743894642464,-540.54561273,0.00030136,2]
[357207708,1743894642474,-505.03284088,0.00030136,2]
[357207709,1743894642483,-500.0,0.00030136,2]
[357207710,1743894642493,-523.87806112,0.00030136,2]
[357207711,1743894642502,-500.0,0.00030136,2]
[357207712,1743894642512,-500.0,0.00030136,2]
[357207713,1743894642521,-514.57602688,0.00030136,2]
[357207714,1743894642531,-529.20585828,0.00030136,2]
[357207715,1743894642540,-520.1683368,0.00030136,2]
[357207716,1743894642549,-500.0,0.00030136,2]
[357207717,1743894642559,-500.0,0.00030136,2]
[357207718,1743894642568,-502.90780583,0.00030136,2]
[357207719,1743894642578,-519.69574521,0.00030136,2]
[357207720,1743894642588,-500.0,0.00030136,2]
[357207722,1743894642598,-522.58493637,0.00030136,2]
[357207723,1743894642608,-500.0,0.00030136,2]
[357207724,1743894642618,-441.66614877,0.00030136,2]
[357207725,1743894642627,-505.095952,0.00030136,2]
[357207726,1743894642636,-505.30049898,0.00030136,2]
[357207727,1743894642646,-507.39865486,0.00030136,2]
[357207728,1743894642655,-474.52215222,0.00030136,2]
[357207729,1743894642664,-512.40046317,0.00030136,2]
[357207730,1743894642674,-500.0,0.00030136,2]
[357207731,1743894642683,-500.0,0.00030136,2]
[357207732,1743894642692,-531.35835428,0.00030136,2]
[357207734,1743894642701,-500.0,0.00030136,2]
[357207735,1743894642710,-508.54386064,0.00030136,2]
[357207736,1743894642720,-509.89907188,0.00030136,2]
[357207737,1743894642729,-500.0,0.00030136,2]
[357207738,1743894642738,-500.0,0.00030136,2]
[357207739,1743894642748,-518.8387677,0.00030136,2]
[357207740,1743894642758,-526.21053205,0.00030136,2]
[357207741,1743894642767,-500.0,0.00030136,2]
[357207742,1743894642781,-503.67544351,0.00030136,2]
[357207743,1743894642791,-523.60423056,0.00030136,2]
[357207744,1743894642800,-500.0,0.00030136,2]
[357207745,1743894642810,-500.0,0.00030136,2]
[357207746,1743894642821,-500.0,0.00030136,2]
[357207747,1743894642830,-500.0,0.00030136,2]
[357207748,1743894642840,-549.55186746,0.00030136,2]
[357207749,1743894642850,-508.07465089,0.00030136,2]
[357207750,1743894642861,-514.32793704,0.00030136,2]
[357207751,1743894642870,-500.0,0.00030136,2]
[357207752,1743894642880,-515.62440317,0.00030136,2]
[357207753,1743894642888,-534.70737218,0.00030136,2]
[357207754,1743894642898,-500.0,0.00030136,2]
[357207755,1743894642907,-500.0,0.00030136,2]
[357207756,1743894642916,-536.92936381,0.00030136,2]
[357207757,1743894642924,-502.59980511,0.00030136,2]
[357207758,1743894642934,-527.54950411,0.00030136,2]
[357207759,1743894642943,-505.05791151,0.00030136,2]
[357207760,1743894642952,-500.0,0.00030136,2]
[357207761,1743894642961,-500.0,0.00030136,2]
[357207762,1743894642970,-500.0,0.00030136,2]
[357207763,1743894642979,-512.76819733,0.00030136,2]
[357207764,1743894642988,-505.35427719,0.00030136,2]
[357207765,1743894642998,-248.69231634,0.00030136,2]
[357207766,1743894643007,-403.22168608,0.00030136,2]
[357207767,1743894643016,-500.0,0.00030136,2]
[357207768,1743894643026,-500.0,0.00030136,2]
[357207769,1743894643036,-500.0,0.00030136,2]
[357207770,1743894643045,-513.02589585,0.00030136,2]
[357207771,1743894643054,-500.0,0.00030136,2]
[357207772,1743894643064,-500.0,0.00030136,2]
[357207773,1743894643074,-536.57893565,0.00030136,2]
[357207774,1743894643083,-500.0,0.00030136,2]
[357207776,1743894643093,-500.0,0.00030136,2]
[357207777,1743894643102,-500.0,0.00030136,2]
[357207779,1743894643111,-500.0,0.00030136,2]
[357207781,1743894643120,-500.0,0.00030136,2]
[357207783,1743894643129,-525.25055301,0.00030136,2]
[357207785,1743894643138,-505.51659077,0.00030136,2]
[357207787,1743894643148,-500.0,0.00030136,2]
[357207789,1743894643157,-500.0,0.00030136,2]
[357207791,1743894643166,-500.0,0.00030136,2]
[357207793,1743894643175,-500.0,0.00030136,2]
[357207795,1743894643184,-500.0,0.00030136,2]
[357207797,1743894643193,-347.1818745,0.00030136,2]
[357207799,1743894643203,-500.0,0.00030136,2]
[357207801,1743894643211,-500.0,0.00030136,2]
[357207803,1743894643220,-500.0,0.00030136,2]
[357207805,1743894643230,-500.0,0.00030136,2]
[357207807,1743894643239,-518.25149328,0.00030136,2]
[357207809,1743894643248,-511.57825979,0.00030136,2]
[357207811,1743894643258,-500.0,0.00030136,2]
[357207813,1743894643267,-500.0,0.00030136,2]
[357207815,1743894643276,-500.0,0.00030136,2]
[357207817,1743894643286,-500.0,0.00030136,2]
[357207819,1743894643295,-514.85034388,0.00030136,2]
[357207821,1743894643304,-500.0,0.00030136,2]
[357207823,1743894643313,-528.15791886,0.00030136,2]
[357207825,1743894643322,-500.0,0.00030136,2]
[357207827,1743894643331,-500.0,0.00030136,2]
[357207829,1743894643340,-506.6707021,0.00030136,2]
[357207831,1743894643349,-510.4517231,0.00030136,2]
[357207833,1743894643358,-500.0,0.00030136,2]
[357207835,1743894643367,-500.0,0.00030136,2]
[357207837,1743894643376,-500.0,0.00030136,2]
[357207839,1743894643385,-501.30516266,0.00030136,2]
[357207841,1743894643395,-500.0,0.00030136,2]
[357207843,1743894643404,-500.0,0.00030136,2]
[357207845,1743894643413,-500.0,0.00030136,2]
[357207846,1743894643422,-500.0,0.00030136,2]
[357207848,1743894643431,-500.0,0.00030136,2]
[357207850,1743894643440,-500.0,0.00030136,2]
[357207852,1743894643449,-500.0,0.00030136,2]
[357207854,1743894643458,-500.0,0.00030136,2]
[357207856,1743894643467,-500.0,0.00030136,2]
[357207861,1743894643506,-500.0,0.00030136,2]
[357207863,1743894643515,-517.104436,0.00030136,2]
[357207865,1743894643524,-500.0,0.00030136,2]
[357207867,1743894643533,-500.0,0.00030136,2]
[357207869,1743894643545,-500.0,0.00030136,2]
[357207871,1743894643554,-500.0,0.00030136,2]
[357207873,1743894643564,-500.0,0.00030136,2]
[357207875,1743894643573,-505.83241189,0.00030136,2]
[357207877,1743894643581,-500.0,0.00030136,2]
[357207879,1743894643591,-500.0,0.00030136,2]
[357207881,1743894643600,-500.0,0.00030136,2]
[357207883,1743894643609,-500.0,0.00030136,2]
[357207885,1743894643618,-550.53946758,0.00030136,2]
[357207886,1743894643627,-500.0,0.00030136,2]
[357207888,1743894643637,-501.73088653,0.00030136,2]
[357207890,1743894643646,-520.24134621,0.00030136,2]
[357207892,1743894643655,-500.0,0.00030136,2]
[357207894,1743894643664,-500.0,0.00030136,2]
[357207896,1743894643675,-500.0,0.00030136,2]
[357207898,1743894643683,-500.0,0.00030136,2]
[357207900,1743894643693,-500.0,0.00030136,2]
[357207902,1743894643702,-500.0,0.00030136,2]
[357207904,1743894643711,-500.0,0.00030136,2]
[357207906,1743894643720,-500.0,0.00030136,2]
[357207908,1743894643729,-500.0,0.00030136,2]
[357207910,1743894643738,-538.83709021,0.00030136,2]
[357207912,1743894643747,-500.0,0.00030136,2]
[357207914,1743894643757,-500.0,0.00030136,2]
[357207916,1743894643766,-500.0,0.00030136,2]
[357207918,1743894643779,-500.0,0.00030136,2]
[357207920,1743894643788,-504.12228323,0.00030136,2]
[357207922,1743894643797,-500.0,0.00030136,2]
[357207924,1743894643806,-500.0,0.00030136,2]
[357207926,1743894643815,-500.45104923,0.00030136,2]
[357207928,1743894643825,-500.0,0.00030136,2]
[357207930,1743894643835,-500.0,0.00030136,2]
[357207932,1743894643845,-500.0,0.00030136,2]
[357207934,1743894643854,-500.0,0.00030136,2]
[357207936,1743894643864,-500.0,0.00030136,2]
[357207938,1743894643873,-500.0,0.00030136,2]
[357207940,1743894643882,-503.02119422,0.00030136,2]
[357207942,1743894643891,-509.52156393,0.00030136,2]
[357207944,1743894643900,-500.0,0.00030136,2]
[357207946,1743894643909,-500.0,0.00030136,2]
[357207948,1743894643918,-500.0,0.00030136,2]
[357207950,1743894643927,-241.45718178,0.00030136,2]
[357207952,1743894643936,-500.0,0.00030136,2]
[357207954,1743894643944,-500.0,0.00030136,2]
[357207955,1743894643953,-500.0,0.00030136,2]
[357207957,1743894643963,-500.0,0.00030136,2]
[357207959,1743894643972,-508.33620868,0.00030136,2]
[357207961,1743894643982,-500.0,0.00030136,2]
[357207962,1743894643991,-500.0,0.00030136,2]
[357207963,1743894644000,-500.0,0.00030136,2]
[357207964,1743894644009,-500.0,0.00030136,2]
[357207965,1743894644018,-500.0,0.00030136,2]
[357207966,1743894644027,-500.0,0.00030136,2]
[357207967,1743894644035,-500.0,0.00030136,2]
[357207968,1743894644044,-500.0,0.00030136,2]
[357207969,1743894644053,-500.0,0.00030136,2]
[357207970,1743894644062,-500.0,0.00030136,2]
[357207971,1743894644071,-500.0,0.00030136,2]
[357207972,1743894644079,-500.0,0.00030136,2]
[357207973,1743894644088,-500.0,0.00030136,2]
[357207974,1743894644097,-500.0,0.00030136,2]
[357207975,1743894644106,-500.0,0.00030136,2]
[357207976,1743894644115,-500.0,0.00030136,2]
[357207977,1743894644124,-500.0,0.00030136,2]
[357207978,1743894644132,-500.0,0.00030136,2]
[357207979,1743894644141,-500.0,0.00030136,2]
[357207980,1743894644151,-500.0,0.00030136,2]
[357207981,1743894644159,-500.0,0.00030136,2]
[357207982,1743894644168,-500.0,0.00030136,2]
[357207983,1743894644177,-500.0,0.00030136,2]
[357207984,1743894644186,-500.0,0.00030136,2]
[357207985,1743894644195,-500.0,0.00030136,2]
[357207986,1743894644204,-500.0,0.00030136,2]
[357207987,1743894644213,-516.09266075,0.00030136,2]
[357207988,1743894644222,-500.0,0.00030136,2]
[357207989,1743894644231,-500.0,0.00030136,2]
[357207990,1743894644240,-500.0,0.00030136,2]
[357207991,1743894644249,-500.0,0.00030136,2]
[357207992,1743894644258,-500.0,0.00030136,2]
[357207993,1743894644267,-500.0,0.00030136,2]
[357207994,1743894644275,-500.0,0.00030136,2]
[357207995,1743894644284,-500.0,0.00030136,2]
[357207996,1743894644293,-500.0,0.00030136,2]
[357207997,1743894644302,-250.00777892,0.00030136,2]
[357207998,1743894644311,-500.0,0.00030136,2]
[357207999,1743894644320,-500.0,0.00030136,2]
[357208000,1743894644329,-587.70207568,0.00030136,2]
[357208001,1743894644339,-500.0,0.00030136,2]
[357208002,1743894644348,-507.79037273,0.00030136,2]
[357208003,1743894644357,-500.0,0.00030136,2]
[357208004,1743894644367,-1500.0,0.00030136,2]
[357208005,1743894644376,-500.0,0.00030136,2]
[357208006,1743894644386,-500.0,0.00030136,2]
[357208007,1743894644395,-500.0,0.00030136,2]
[357208008,1743894644405,-218.38751109,0.00030136,2]
[357208009,1743894644415,-505.16843428,0.00030136,2]
[357208010,1743894644425,-506.08294856,0.00030136,2]
[357208011,1743894644436,-500.0,0.00030136,2]
[357208012,1743894644446,-504.19610242,0.00030136,2]
[357208013,1743894644455,-500.0,0.00030136,2]
[357208014,1743894644465,-500.0,0.00030136,2]
[357208015,1743894644475,-509.70303458,0.00030136,2]
[357208016,1743894644485,-500.0,0.00030136,2]
[357208017,1743894644494,-500.0,0.00030136,2]
[357208018,1743894644504,-500.0,0.00030136,2]
[357208019,1743894644514,-500.0,0.00030136,2]
[357208020,1743894644523,-500.0,0.00030136,2]
[357208021,1743894644532,-500.0,0.00030136,2]
[357208022,1743894644541,-500.0,0.00030136,2]
[357208023,1743894644551,-500.0,0.00030136,2]
[357208024,1743894644560,-531.39474744,0.00030136,2]
[357208025,1743894644571,-500.0,0.00030136,2]
[357208026,1743894644581,-500.0,0.00030136,2]
[357208027,1743894644601,-500.0,0.00030136,2]
[357208028,1743894644612,-500.0,0.00030136,2]
[357208029,1743894644623,-508.70406089,0.00030136,2]
[357208030,1743894644633,-500.0,0.00030136,2]
[357208031,1743894644644,-504.45535021,0.00030136,2]
[357208032,1743894644655,-500.0,0.00030136,2]
[357208033,1743894644666,-500.0,0.00030136,2]
[357208034,1743894644677,-500.0,0.00030136,2]
[357208035,1743894644687,-500.0,0.00030136,2]
[357208036,1743894644698,-505.86040666,0.00030136,2]
[357208037,1743894644709,-513.07251488,0.00030136,2]
[357208038,1743894644719,-500.0,0.00030136,2]
[357208039,1743894644730,-500.0,0.00030136,2]
[357208040,1743894644743,-507.1141183,0.00030136,2]
[357208041,1743894644753,-500.0,0.00030136,2]
[357208042,1743894644763,-500.0,0.00030136,2]
[357208043,1743894644774,-509.45483288,0.00030136,2]
[357208044,1743894644786,-503.6951467,0.00030136,2]
[357208045,1743894644796,-500.0,0.00030136,2]
[357208046,1743894644805,-500.0,0.00030136,2]
[357208047,1743894644817,-500.0,0.00030136,2]
[357208048,1743894644827,-500.0,0.00030136,2]
[357208049,1743894644842,-509.25463678,0.00030136,2]
[357208050,1743894644852,-500.0,0.00030136,2]
[357208051,1743894644863,-503.94508787,0.00030136,2]
[357208052,1743894644874,-500.0,0.00030136,2]
[357208053,1743894644884,-500.0,0.00030136,2]
[357208054,1743894644894,-508.75430924,0.00030136,2]
[357208055,1743894644904,-500.0,0.00030136,2]
[357208056,1743894644915,-500.0,0.00030136,2]
[357208057,1743894644924,-500.0,0.00030136,2]
[357208058,1743894644934,-500.0,0.00030136,2]
[357208059,1743894644944,-500.0,0.00030136,2]
[357208060,1743894644954,-500.0,0.00030136,2]
[357208061,1743894644964,-512.87103996,0.00030136,2]
[357208062,1743894644973,-500.0,0.00030136,2]
[357208063,1743894644983,-504.12241566,0.00030136,2]
[357208064,1743894644992,-505.05583998,0.00030136,2]
[357208065,1743894645002,-500.0,0.00030136,2]
[357208066,1743894645011,-500.0,0.00030136,2]
[357208067,1743894645021,-514.60096779,0.00030136,2]
[357208068,1743894645030,-500.0,0.00030136,2]
[357208069,1743894645040,-500.0,0.00030136,2]
[357208070,1743894645050,-500.0,0.00030136,2]
[357208071,1743894645060,-500.0,0.00030136,2]
[357208072,1743894645069,-500.0,0.00030136,2]
[357208073,1743894645079,-500.0,0.00030136,2]
[357208074,1743894645091,-534.40297966,0.00030136,2]
[357208075,1743894645101,-627.15160794,0.00030136,2]